bitfinex/quotes_BTCUSD_20220103
["timestamp","ask_amount","ask_price","bid_price","bid_amount"]
[1641240530344,0.81986118,46311.0,46310.0,0.28110776]
[1641240530546,0.81986118,46311.0,46310.0,1.91800076]
[1641240530778,0.81986118,46311.0,46310.0,1.96800076]
[1641240530979,0.81986118,46318.0,46313.0,0.05397275]
[1641240531182,0.81986118,46318.0,46317.0,0.08734568]
[1641240531378,0.81986118,46318.0,46317.0,0.0432]
[1641240531778,0.81986118,46320.0,46314.0,0.00022161]
[1641240532278,1.09672749,46320.0,46314.0,0.00022161]
[1641240532577,0.053988,46319.0,46314.0,0.00022161]
[1641240533184,0.81986118,46317.0,46314.0,0.00022161]
[1641240533384,1.62544353,46301.0,46294.0,0.10495307]
[1641240533584,0.1489859,46298.0,46285.0,1.09950632]
[1641240533782,0.1489859,46298.0,46273.0,0.00011]
[1641240533783,0.1,46289.0,46284.0,1.09950632]
[1641240533983,0.19431821,46285.0,46273.0,0.00011]
[1641240534180,0.1,46278.0,46273.0,0.00011]
[1641240534379,0.0432,46277.0,46273.0,0.00011]
[1641240534632,1.72,46274.0,46273.0,0.008644]
[1641240534830,1.72,46274.0,46270.0,6.19e-06]
[1641240534831,1.921861,46273.0,46270.0,6.19e-06]
[1641240535036,1.921861,46273.0,46260.0,0.008546]
[1641240535037,1.62,46270.0,46260.0,0.008546]
[1641240535230,0.1,46263.0,46260.0,8.6e-05]
[1641240535434,0.1,46263.0,46258.0,0.00033]
[1641240535435,1.965061,46262.0,46258.0,0.00033]
[1641240535633,1.72813788,46258.0,46252.0,0.00011]
[1641240535834,1.72813788,46258.0,46250.0,0.10033]
[1641240535835,0.00125514,46252.0,46250.0,0.10033]
[1641240536033,0.345061,46251.0,46250.0,0.10033]
[1641240536234,0.20246,46251.0,46250.0,0.10033]
[1641240536734,0.20224,46251.0,46250.0,0.10033]
[1641240536932,0.20224,46251.0,46250.0,0.453048]
[1641240537133,0.20182196,46251.0,46250.0,0.453048]
[1641240537333,0.20171196,46251.0,46250.0,0.78472455]
[1641240537538,0.20171196,46251.0,46250.0,0.95810721]
[1641240537734,0.20160196,46251.0,46250.0,0.62643066]
[1641240537934,0.20160196,46251.0,46250.0,0.561581]
[1641240538132,0.20138196,46251.0,46250.0,0.561581]
[1641240538371,0.20127196,46251.0,46250.0,0.561581]
[1641240538773,0.19452325,46251.0,46250.0,0.461581]
[1641240539073,0.19441325,46251.0,46250.0,0.461581]
[1641240539273,0.19430325,46251.0,46250.0,0.108863]
[1641240539775,0.19419325,46251.0,46250.0,0.108863]
[1641240539976,0.99408325,46251.0,46250.0,0.108863]
[1641240540177,0.99397325,46251.0,46250.0,0.108863]
[1641240540376,0.19386325,46251.0,46250.0,0.108863]
[1641240540577,0.19375325,46251.0,46250.0,0.108863]
[1641240540776,0.19353325,46251.0,46250.0,0.108863]
[1641240540975,0.19353325,46251.0,46250.0,0.581581]
[1641240541176,0.19331325,46251.0,46250.0,0.65642142]
[1641240541476,0.19331325,46251.0,46250.0,0.75642142]
[1641240541678,0.19309325,46251.0,46250.0,0.75642142]
[1641240541874,0.19309325,46251.0,46250.0,0.461581]
[1641240542124,0.19287325,46251.0,46250.0,0.461581]
[1641240542324,0.19287325,46251.0,46250.0,0.46183763]
[1641240542527,0.19287325,46251.0,46250.0,0.56183763]
[1641240543128,0.19276325,46251.0,46250.0,0.56183763]
[1641240543325,0.88,46250.0,46249.0,0.00044]
[1641240543529,1.232642,46250.0,46249.0,0.00044]
[1641240543924,1.972532,46250.0,46249.0,0.00044]
[1641240544127,1.232532,46250.0,46238.0,0.00022]
[1641240544324,1.232532,46250.0,46180.0,1.18644708]
[1641240544325,0.00127993,46248.0,46234.0,0.67663136]
[1641240544524,0.00127993,46248.0,46235.0,0.2]
[1641240544725,0.00116993,46248.0,46232.0,0.00581656]
[1641240544923,0.00116993,46248.0,46232.0,1.14281656]
[1641240545124,0.19276325,46251.0,46232.0,1.14281656]
[1641240545125,0.19276325,46251.0,46234.0,1.32974971]
[1641240545324,0.19276325,46251.0,46246.0,0.28783089]
[1641240545523,0.19276325,46251.0,46247.0,0.2]
[1641240545798,0.57794345,46246.0,46238.0,0.108104]
[1641240545993,0.57794345,46246.0,46230.0,0.00033]
[1641240545994,0.57783345,46246.0,46244.0,0.008534]
[1641240546393,0.57772345,46246.0,46244.0,0.008534]
[1641240546594,0.19265325,46251.0,46244.0,0.008534]
[1641240547192,1.01251443,46251.0,46244.0,0.008534]
[1641240547593,0.00129784,46246.0,46244.0,0.008534]
[1641240548997,0.81986118,46250.0,46244.0,0.008534]
[1641240549195,0.81986118,46250.0,46247.0,0.09875307]
[1641240549396,0.81986118,46250.0,46248.0,0.36474368]
[1641240549628,0.81986118,46250.0,46249.0,0.37693773]
[1641240549829,0.81986118,46250.0,46249.0,1.21966746]
[1641240550029,0.81986118,46250.0,46249.0,1.36966746]
[1641240550232,0.19265325,46251.0,46250.0,1.137]
[1641240550430,0.19265325,46251.0,46250.0,2.09484446]
[1641240550630,0.19265325,46251.0,46250.0,2.29888746]
[1641240550830,0.00821659,46254.0,46253.0,1.337]
[1641240551034,0.00821659,46254.0,46253.0,2.310012]
[1641240551830,0.00821659,46254.0,46253.0,2.314049]
[1641240552033,0.00821659,46254.0,46253.0,0.492552]
[1641240552231,0.81986118,46259.0,46253.0,0.492552]
[1641240552232,0.81486118,46259.0,46253.0,0.492552]
[1641240552432,0.81486118,46264.0,46253.0,0.1398]
[1641240552631,0.81486118,46264.0,46253.0,0.0398]
[1641240552833,0.00120663,46267.0,46253.0,0.04003075]
[1641240553031,1.22114717,46263.0,46253.0,0.04003075]
[1641240553280,1.22114717,46266.0,46253.0,0.04003075]
[1641240553481,1.22114717,46266.0,46254.0,0.0791675]
[1641240553881,1.27519251,46266.0,46262.0,0.07253628]
[1641240554082,1.22114717,46266.0,46262.0,0.07253628]
[1641240554484,1.22114717,46265.0,46262.0,0.07253628]
[1641240555683,0.00120663,46267.0,46262.0,0.07253628]
[1641240555887,0.57900516,46263.0,46262.0,0.07253628]
[1641240556488,0.57900516,46264.0,46262.0,0.07253628]
[1641240557029,0.57900516,46266.0,46262.0,0.07253628]
[1641240557226,0.57900516,46266.0,46258.0,0.0398]
[1641240557426,0.84886312,46266.0,46258.0,0.0398]
[1641240557626,0.58021179,46267.0,46258.0,0.0398]
[1641240557827,0.3811311,46266.0,46253.0,0.00023075]
[1641240558225,0.57900516,46263.0,46253.0,0.07855882]
[1641240558627,0.5786827,46263.0,46262.0,0.29455208]
[1641240558852,0.5786827,46263.0,46262.0,0.79486104]
[1641240559027,0.3111,46286.0,46262.0,0.79486104]
[1641240559028,0.5786827,46266.0,46263.0,0.10566207]
[1641240559228,0.5786827,46266.0,46262.0,1.24761304]
[1641240559229,0.5786827,46266.0,46265.0,0.352752]
[1641240559426,0.5786827,46266.0,46265.0,0.692552]
[1641240559628,1.29656929,46284.0,46265.0,2.1224684]
[1641240559827,0.0012609,46280.0,46267.0,0.07379838]
[1641240560029,0.00123243,46274.0,46267.0,0.07379838]
[1641240560226,0.00123243,46274.0,46268.0,0.352752]
[1641240560626,0.00123243,46274.0,46265.0,0.0398]
[1641240561987,0.00123243,46274.0,46261.0,0.46920896]
[1641240563393,0.05527497,46274.0,46262.0,0.00031717]
[1641240563591,0.00123243,46274.0,46262.0,0.00031717]
[1641240563994,0.352752,46273.0,46262.0,0.00031717]
[1641240564194,0.0012123,46267.0,46262.0,0.00031717]
[1641240564393,0.43891,46266.0,46262.0,0.00031717]
[1641240564826,0.43891,46266.0,46254.0,0.32042227]
[1641240565431,0.0012123,46267.0,46258.0,0.07178411]
[1641240565926,0.0012123,46267.0,46259.0,0.58475601]
[1641240566127,0.81185,46272.0,46259.0,0.67411392]
[1641240566327,0.81185,46272.0,46259.0,0.34705704]
[1641240566532,0.27161729,46271.0,46258.0,0.5100674]
[1641240566729,0.27161729,46271.0,46259.0,0.32180179]
[1641240566927,0.81185,46273.0,46259.0,0.32180179]
[1641240567128,0.00120359,46274.0,46259.0,0.42180179]
[1641240567328,0.00120359,46274.0,46265.0,0.09970569]
[1641240568029,0.00120359,46274.0,46259.0,0.6643388]
[1641240568030,0.2834042,46272.0,46259.0,0.6643388]
[1641240568303,0.8622555,46272.0,46259.0,0.32180179]
[1641240568705,0.8622555,46272.0,46259.0,0.42180179]
[1641240568905,0.5788513,46270.0,46259.0,0.42180179]
[1641240570502,0.5788513,46270.0,46260.0,0.054037]
[1641240570702,0.5788513,46271.0,46260.0,0.054037]
[1641240571305,2.60023161,46273.0,46264.0,0.07886852]
[1641240571306,0.5788513,46272.0,46264.0,0.07886852]
[1641240572229,0.5788513,46272.0,46259.0,0.32917992]
[1641240572428,0.5788513,46272.0,46257.0,0.00121944]
[1641240572629,0.63289595,46272.0,46256.0,0.62610895]
[1641240572829,0.74098295,46272.0,46256.0,0.62610895]
[1641240573029,0.5788513,46271.0,46256.0,0.62610895]
[1641240573228,0.5788513,46271.0,46263.0,0.09531899]
[1641240573428,0.5788513,46271.0,46263.0,0.42377409]
[1641240573629,0.5788513,46271.0,46263.0,0.52377409]
[1641240573830,0.5788513,46271.0,46270.0,0.09748596]
[1641240574132,0.00120359,46274.0,46270.0,0.09748596]
[1641240574133,0.5788513,46272.0,46270.0,0.09748596]
[1641240574930,0.58005489,46274.0,46270.0,0.09748596]
[1641240575330,0.58005489,46274.0,46267.0,0.32305784]
[1641240575531,0.58005489,46274.0,46273.0,0.26489671]
[1641240575796,0.58005489,46274.0,46273.0,0.40900896]
[1641240575797,0.5788513,46274.0,46273.0,0.40900896]
[1641240576096,0.57860715,46274.0,46273.0,0.70900896]
[1641240576292,0.57860715,46279.0,46273.0,0.46593627]
[1641240576497,0.82775342,46279.0,46271.0,0.00122118]
[1641240576694,0.00124932,46277.0,46267.0,0.46920896]
[1641240576897,0.57860715,46279.0,46268.0,0.054028]
[1641240577095,0.81185,46283.0,46267.0,0.10121731]
[1641240577393,0.00128644,46284.0,46267.0,0.00121731]
[1641240577595,0.054035,46279.0,46267.0,0.00121731]
[1641240577793,0.054035,46279.0,46264.0,0.47726396]
[1641240577794,0.29515228,46278.0,46264.0,0.47726396]
[1641240577993,0.00123539,46278.0,46264.0,0.53129696]
[1641240578994,0.00123539,46278.0,46266.0,0.054031]
[1641240579197,0.00123539,46278.0,46267.0,0.35060697]
[1641240579627,0.00123539,46278.0,46267.0,0.54142123]
[1641240580028,0.00123539,46278.0,46267.0,0.74142123]
[1641240580427,0.81185,46281.0,46267.0,1.27193611]
[1641240580629,0.81185,46281.0,46267.0,0.75988855]
[1641240580827,0.81185,46278.0,46267.0,0.75988855]
[1641240581028,0.81185,46278.0,46267.0,0.80988855]
[1641240581328,0.81185,46278.0,46267.0,0.20928158]
[1641240581528,1.10958653,46278.0,46267.0,0.00123258]
[1641240581730,0.00122145,46271.0,46264.0,0.1]
[1641240581929,0.00122145,46271.0,46263.0,0.00028875]
[1641240582328,0.36920896,46277.0,46263.0,0.00028875]
[1641240582733,0.81185,46274.0,46263.0,0.00028875]
[1641240582930,0.352752,46273.0,46263.0,0.00028875]
[1641240583134,0.00128852,46268.0,46263.0,0.00028875]
[1641240583375,0.40992,46267.0,46263.0,0.00028875]
[1641240583976,0.48,46266.0,46257.0,0.0419671]
[1641240584577,0.48,46266.0,46255.0,0.08994865]
[1641240584775,0.48,46266.0,46263.0,0.000649]
[1641240585279,0.00128852,46268.0,46263.0,0.000649]
[1641240585777,0.58075179,46265.0,46263.0,0.000649]
[1641240586779,0.58075179,46265.0,46264.0,0.28376116]
[1641240587037,0.58075179,46267.0,46264.0,0.61260548]
[1641240587430,0.58075179,46267.0,46266.0,0.28627394]
[1641240587632,0.58075179,46270.0,46266.0,0.61087629]
[1641240587830,0.58075179,46270.0,46266.0,0.38363535]
[1641240588031,0.58075179,46270.0,46266.0,0.48363535]
[1641240588232,0.58075179,46271.0,46266.0,0.1]
[1641240588430,0.58075179,46271.0,46263.0,0.32596561]
[1641240588633,0.58075179,46271.0,46263.0,0.42596561]
[1641240589034,0.58075179,46271.0,46264.0,0.29234397]
[1641240589234,0.58075179,46271.0,46270.0,0.28653809]
[1641240589433,0.58075179,46271.0,46270.0,0.34136164]
[1641240589634,0.58075179,46271.0,46263.0,0.100649]
[1641240589836,0.58075179,46271.0,46263.0,0.000649]
[1641240589837,0.37775871,46270.0,46263.0,0.000649]
[1641240590031,0.58075179,46271.0,46263.0,0.000649]
[1641240590432,0.95716887,46271.0,46263.0,0.000649]
[1641240590649,0.00121418,46266.0,46263.0,0.000649]
[1641240590901,0.301822,46265.0,46263.0,0.000649]
[1641240591698,0.58075179,46264.0,46263.0,0.000649]
[1641240591898,0.93350379,46264.0,46263.0,0.000649]
[1641240592099,0.58075179,46264.0,46263.0,0.000649]
[1641240592298,0.10931257,46266.0,46263.0,0.000649]
[1641240592299,0.054049,46266.0,46263.0,0.000649]
[1641240592699,0.81185,46267.0,46263.0,0.000649]
[1641240592898,0.352752,46266.0,46263.0,0.000649]
[1641240593099,0.58090486,46264.0,46263.0,0.000649]
[1641240593699,0.054047,46267.0,46263.0,0.000649]
[1641240593899,0.87409136,46268.0,46263.0,0.000649]
[1641240594099,0.82004536,46268.0,46263.0,0.000649]
[1641240594305,0.82004536,46268.0,46263.0,0.09556498]
[1641240594561,0.58102876,46265.0,46263.0,0.000649]
[1641240595149,0.00819536,46268.0,46263.0,0.00091445]
[1641240596549,0.58922412,46268.0,46263.0,0.00091445]
[1641240596749,0.00120417,46266.0,46263.0,0.00091445]
[1641240596948,0.352752,46265.0,46263.0,0.00091445]
[1641240597148,0.00120329,46264.0,46263.0,0.00091445]
[1641240597351,2.50405405,46264.0,46263.0,0.00091445]
[1641240597753,1.13560451,46264.0,46263.0,0.00091445]
[1641240597952,0.55457575,46264.0,46263.0,0.00091445]
[1641240598375,1.61457575,46264.0,46263.0,0.00091445]
[1641240599379,0.74,46263.0,46249.0,0.1]
[1641240599680,0.054063,46253.0,46249.0,0.1]
[1641240599876,0.054063,46253.0,46249.0,0.05]
[1641240600077,0.054063,46253.0,46248.0,0.00819536]
[1641240600380,0.054063,46253.0,46239.0,0.26991488]
[1641240600381,0.054063,46253.0,46242.0,0.30578759]
[1641240600580,0.10936129,46255.0,46242.0,0.35984859]
[1641240600779,0.00123929,46255.0,46242.0,0.30578759]
[1641240600980,0.58039317,46257.0,46247.0,0.07954332]
[1641240601380,0.58039317,46257.0,46244.0,0.00979149]
[1641240601584,0.054062,46254.0,46244.0,0.05979149]
[1641240601783,0.63445517,46257.0,46244.0,0.06384949]
[1641240601784,0.05406,46257.0,46244.0,0.06384949]
[1641240602048,0.05406,46257.0,46244.0,0.11384949]
[1641240602438,0.63445317,46257.0,46244.0,0.15010826]
[1641240602638,0.05406,46256.0,46244.0,0.20010826]
[1641240603042,0.58039317,46256.0,46244.0,0.20010826]
[1641240603240,0.58039317,46256.0,46251.0,0.08758769]
[1641240603641,0.58039317,46256.0,46251.0,0.13758769]
[1641240603839,0.58039317,46256.0,46251.0,0.45371013]
[1641240604138,0.58039317,46260.0,46251.0,0.55371013]
[1641240604539,0.58039317,46260.0,46251.0,0.46612244]
[1641240605544,0.58169184,46261.0,46251.0,0.15]
[1641240605979,0.58169184,46261.0,46251.0,0.05]
[1641240606178,0.58169184,46261.0,46248.0,0.19045919]
[1641240606379,0.63574584,46261.0,46248.0,0.19046119]
[1641240606579,0.58039317,46259.0,46249.0,0.3324551]
[1641240606980,0.58039317,46259.0,46249.0,0.4324551]
[1641240607183,0.58039317,46259.0,46258.0,0.08222913]
[1641240607385,0.58039317,46259.0,46258.0,0.17957013]
[1641240607584,0.58039317,46259.0,46258.0,1.6177789]
[1641240607781,0.58039317,46259.0,46258.0,0.8335309]
[1641240607981,0.58039317,46263.0,46258.0,0.9335309]
[1641240608185,0.5885886,46263.0,46261.0,0.24820005]
[1641240608380,0.5885886,46263.0,46262.0,0.402752]
[1641240608582,0.00819543,46263.0,46262.0,0.502752]
[1641240608780,0.00819543,46263.0,46262.0,0.55679]
[1641240608982,0.00819543,46263.0,46262.0,0.50679]
[1641240609183,0.00819543,46263.0,46262.0,0.70679]
[1641240609383,0.00819543,46263.0,46262.0,1.11262013]
[1641240610037,0.00819543,46263.0,46262.0,1.16262013]
[1641240610244,0.58039317,46268.0,46262.0,2.30083684]
[1641240610439,0.58039317,46268.0,46267.0,0.2]
[1641240610640,0.58039317,46268.0,46267.0,0.64069622]
[1641240610844,1.3963,46281.0,46268.0,0.00123935]
[1641240610845,0.58039317,46271.0,46268.0,0.00123935]
[1641240611040,0.58039317,46271.0,46270.0,0.352752]
[1641240611242,0.58039317,46271.0,46270.0,0.97007231]
[1641240611440,0.58039317,46271.0,46270.0,1.27007231]
[1641240611654,0.58039317,46274.0,46270.0,1.27007231]
[1641240611847,0.58039317,46274.0,46272.0,0.054027]
[1641240612042,0.58039317,46274.0,46273.0,0.32209154]
[1641240612547,0.989908,46290.0,46274.0,0.95042476]
[1641240612548,0.58039317,46275.0,46274.0,0.95042476]
[1641240612741,0.58039317,46275.0,46274.0,1.71155138]
[1641240612943,0.58039317,46275.0,46274.0,3.07892673]
[1641240613142,0.58039317,46275.0,46274.0,3.07289938]
[1641240613391,0.58039317,46281.0,46274.0,3.07289938]
[1641240613587,0.58039317,46281.0,46279.0,0.5283821]
[1641240613787,0.58039317,46281.0,46280.0,1.38151079]
[1641240614087,0.58039317,46281.0,46280.0,1.85745063]
[1641240614389,0.00818585,46285.0,46284.0,0.2]
[1641240614588,0.81185,46290.0,46288.0,0.00122185]
[1641240614791,0.81185,46290.0,46288.0,0.24452185]
[1641240614987,0.81185,46290.0,46288.0,1.7887839]
[1641240615189,0.81185,46290.0,46288.0,1.2563528]
[1641240615388,0.81185,46296.0,46288.0,1.3563528]
[1641240615890,0.81185,46296.0,46288.0,1.4103538]
[1641240616087,0.81185,46298.0,46288.0,1.1045359]
[1641240616688,0.81185,46297.0,46288.0,1.0045359]
[1641240616888,0.81125,46297.0,46291.0,0.10000854]
[1641240617129,0.86526209,46297.0,46291.0,0.10000854]
[1641240617330,0.00818572,46293.0,46288.0,0.2433]
[1641240618328,0.00818572,46293.0,46291.0,0.07438647]
[1641240619133,0.00818572,46293.0,46285.0,0.35392223]
[1641240619333,0.00818572,46293.0,46285.0,0.40392223]
[1641240620332,0.00818572,46293.0,46288.0,0.0782852]
[1641240620803,0.00818572,46293.0,46284.0,0.00818572]
[1641240620804,0.054017,46292.0,46284.0,0.00818572]
[1641240621005,0.00818572,46293.0,46284.0,0.00818572]
[1641240621404,0.352752,46292.0,46284.0,0.00818572]
[1641240621802,0.054025,46288.0,46284.0,0.00818572]
[1641240622204,0.054025,46288.0,46283.0,0.09188571]
[1641240622605,1.2205529,46291.0,46283.0,0.09188571]
[1641240623005,0.16206091,46293.0,46283.0,0.09188571]
[1641240623304,0.054021,46289.0,46283.0,0.09188571]
[1641240623605,0.054021,46289.0,46276.0,0.3]
[1641240623606,1.57088902,46290.0,46274.0,0.00122114]
[1641240624305,0.054024,46286.0,46274.0,0.00122114]
[1641240624537,0.054024,46286.0,46279.0,0.07082368]
[1641240624933,0.58598563,46282.0,46279.0,0.12082368]
[1641240625332,0.108047,46289.0,46279.0,0.12082368]
[1641240625734,0.054024,46286.0,46279.0,0.12082368]
[1641240626937,0.16207576,46286.0,46279.0,0.12082368]
[1641240627240,0.054024,46286.0,46279.0,0.12082368]
[1641240628685,0.58598563,46282.0,46279.0,0.12082368]
[1641240629884,0.054026,46284.0,46279.0,0.12082368]
[1641240629885,0.58598563,46281.0,46279.0,0.12082368]
[1641240632558,0.58598563,46281.0,46280.0,0.0002273]
[1641240634760,0.58598563,46281.0,46280.0,0.57251387]
[1641240634959,0.58598563,46281.0,46280.0,2.21358287]
[1641240635161,0.82037988,46285.0,46282.0,0.2]
[1641240635358,0.82037988,46285.0,46284.0,2.0192744]
[1641240635560,0.82037988,46285.0,46284.0,2.1625744]
[1641240635785,0.00818587,46289.0,46284.0,2.46405695]
[1641240635990,0.00818587,46289.0,46288.0,0.70322254]
[1641240636286,0.82037988,46291.0,46289.0,0.2]
[1641240636486,0.82037988,46291.0,46290.0,0.646052]
[1641240636689,0.82037988,46295.0,46290.0,0.646052]
[1641240636884,0.82037988,46295.0,46290.0,0.746052]
[1641240637085,0.82037988,46295.0,46292.0,0.2]
[1641240637286,0.82037988,46295.0,46293.0,0.2]
[1641240637486,0.82037988,46295.0,46294.0,0.57425327]
[1641240637691,0.82037988,46295.0,46292.0,0.204001]
[1641240637888,0.82037988,46295.0,46292.0,0.15]
[1641240638088,0.82037988,46296.0,46292.0,0.15]
[1641240638687,0.82037988,46294.0,46292.0,0.15]
[1641240638886,0.82037988,46294.0,46288.0,0.14646654]
[1641240639632,0.82037988,46294.0,46288.0,0.05]
[1641240639833,0.82037988,46294.0,46286.0,0.15]
[1641240640035,0.37416634,46293.0,46283.0,0.00126696]
[1641240640231,0.37416634,46293.0,46281.0,0.2]
[1641240640432,0.82037988,46294.0,46280.0,0.0002273]
[1641240640632,0.82037988,46294.0,46286.0,0.07927067]
[1641240641333,0.82037988,46290.0,46286.0,0.07927067]
[1641240641536,0.82037988,46290.0,46286.0,0.12927067]
[1641240641735,0.82037988,46290.0,46286.0,0.07927067]
[1641240641935,0.82037988,46291.0,46286.0,0.07927067]
[1641240642532,0.82037988,46292.0,46286.0,0.12927067]
[1641240642734,0.82037988,46292.0,46286.0,0.07927067]
[1641240643390,0.82037988,46293.0,46286.0,0.07948391]
[1641240644496,0.58706943,46288.0,46286.0,0.07948391]
[1641240645694,0.58706943,46289.0,46286.0,0.07948391]
[1641240646096,0.58706943,46288.0,46286.0,0.07948391]
[1641240646896,0.58706943,46289.0,46286.0,0.07948391]
[1641240647727,0.58706943,46289.0,46286.0,0.12948391]
[1641240649131,0.58706943,46289.0,46286.0,0.07948391]
[1641240650131,0.58706943,46289.0,46286.0,0.12948391]
[1641240651597,0.58706943,46289.0,46286.0,0.00021324]
[1641240651796,1.214023,46287.0,46286.0,0.00021324]
[1641240651996,1.515845,46287.0,46286.0,0.00021324]
[1641240652398,1.76836824,46287.0,46286.0,0.00021324]
[1641240653000,2.58874812,46287.0,46286.0,0.00021324]
[1641240653396,1.42874812,46287.0,46286.0,0.00021324]
[1641240653598,1.57639653,46287.0,46286.0,0.00021324]
[1641240653798,1.27457453,46287.0,46286.0,0.00021324]
[1641240654655,1.22055153,46287.0,46286.0,0.00021324]
[1641240655252,1.57330353,46287.0,46286.0,0.00021324]
[1641240655854,0.352752,46287.0,46286.0,0.00021324]
[1641240656455,1.22055153,46288.0,46286.0,0.00021324]
[1641240656656,1.22055153,46287.0,46286.0,0.00021324]
[1641240657662,0.82119605,46287.0,46286.0,0.00021324]
[1641240658296,0.82119605,46288.0,46286.0,0.00021324]
[1641240660200,0.82119605,46289.0,46287.0,0.07328145]
[1641240660795,0.82119605,46289.0,46286.0,0.00021324]
[1641240661796,0.82119605,46288.0,46286.0,0.00021324]
[1641240662234,0.992752,46287.0,46286.0,0.00021324]
[1641240662434,1.17394805,46287.0,46286.0,0.00021324]
[1641240662633,0.82119605,46287.0,46286.0,0.00021324]
[1641240662837,0.82119605,46287.0,46286.0,0.04351324]
[1641240663034,0.82119605,46287.0,46286.0,0.24351324]
[1641240663233,0.82119605,46287.0,46286.0,0.38029567]
[1641240663432,1.22047559,46292.0,46286.0,0.38029567]
[1641240663634,1.22047559,46287.0,46286.0,0.58830967]
[1641240664535,1.22047559,46287.0,46286.0,0.94106167]
[1641240664736,1.22047559,46287.0,46286.0,1.63635838]
[1641240664936,1.22047559,46287.0,46286.0,2.07806167]
[1641240665135,0.58902015,46289.0,46286.0,2.07806167]
[1641240665339,0.58902015,46289.0,46288.0,0.552752]
[1641240665535,0.58902015,46289.0,46288.0,1.03341058]
[1641240665781,0.58902015,46289.0,46288.0,2.17041058]
[1641240666383,0.58902015,46289.0,46288.0,1.03341058]
[1641240666586,0.58902015,46294.0,46288.0,1.03341058]
[1641240666784,0.58902015,46294.0,46291.0,0.054005]
[1641240666985,0.58902015,46294.0,46293.0,0.14622355]
[1641240667685,0.58902015,46294.0,46293.0,0.09622355]
[1641240667889,0.58902015,46294.0,46293.0,0.14622355]
[1641240668285,0.58902015,46294.0,46293.0,0.68426469]
[1641240668486,0.58902015,46294.0,46293.0,0.7288186]
[1641240668686,0.58902015,46294.0,46293.0,0.49077746]
[1641240668885,0.58902015,46294.0,46293.0,1.62777746]
[1641240669085,0.58902015,46294.0,46293.0,0.49077746]
[1641240669938,0.8328142,46298.0,46295.0,0.2]
[1641240669939,0.58902015,46297.0,46295.0,0.2]
[1641240670141,0.58902015,46297.0,46295.0,0.30799578]
[1641240670338,0.58902015,46297.0,46296.0,0.25]
[1641240670541,0.58902015,46297.0,46296.0,0.57952028]
[1641240670739,0.58902015,46297.0,46296.0,0.25]
[1641240670942,0.00818599,46298.0,46296.0,0.25]
[1641240671140,0.00818599,46298.0,46297.0,0.054]
[1641240672140,0.00818599,46298.0,46297.0,0.0973]
[1641240672340,1.37331496,46300.0,46297.0,0.0973]
[1641240672540,1.37331496,46300.0,46298.0,0.2]
[1641240672738,1.37331496,46300.0,46298.0,0.253997]
[1641240673140,1.37331496,46300.0,46298.0,0.053997]
[1641240673385,1.37331496,46300.0,46297.0,0.0433]
[1641240673587,1.37331496,46300.0,46297.0,0.0973]
[1641240673988,1.37331496,46300.0,46297.0,0.1513]
[1641240674289,1.36831496,46300.0,46298.0,0.2]
[1641240674589,0.54368675,46300.0,46299.0,0.2012282]
[1641240675288,0.54368675,46300.0,46299.0,0.2]
[1641240675490,0.54368675,46300.0,46299.0,0.20020389]
[1641240677345,0.54368675,46300.0,46299.0,0.00020389]
[1641240677548,1.49368675,46300.0,46299.0,0.00020389]
[1641240677946,1.84643875,46300.0,46299.0,0.00020389]
[1641240678446,3.0666257,46300.0,46299.0,0.00020389]
[1641240679746,1.571822,46299.0,46293.0,0.00738981]
[1641240679949,0.05401267,46298.0,46293.0,0.00738981]
[1641240680146,1.7638737,46300.0,46293.0,0.00738981]
[1641240680547,0.82470784,46296.0,46293.0,0.00738981]
[1641240681893,0.82470784,46297.0,46293.0,0.00738981]
[1641240682292,0.82470784,46297.0,46292.0,0.054006]
[1641240683092,0.58926483,46294.0,46292.0,0.054006]
[1641240683892,0.58926483,46295.0,46292.0,0.054006]
[1641240684094,0.58926483,46295.0,46293.0,0.2]
[1641240684291,0.58926483,46295.0,46294.0,0.45978034]
[1641240684555,0.58926483,46295.0,46294.0,0.95613482]
[1641240685348,0.58926483,46297.0,46294.0,0.95613482]
[1641240685549,0.58926483,46297.0,46296.0,0.253999]
[1641240685951,0.58926483,46297.0,46296.0,0.57923534]
[1641240686248,0.58926483,46297.0,46296.0,0.67391092]
[1641240686448,0.58926483,46297.0,46296.0,0.71841526]
[1641240686648,0.58926483,46297.0,46296.0,0.80775526]
[1641240686849,0.58926483,46297.0,46296.0,0.48803124]
[1641240687250,0.58926483,46297.0,46296.0,0.84078324]
[1641240687853,0.58926483,46297.0,46296.0,0.48803124]
[1641240688054,0.58926483,46297.0,46296.0,0.2974869]
[1641240688296,0.58926483,46297.0,46296.0,0.0001879]
[1641240688297,0.58626483,46297.0,46296.0,0.0001879]
[1641240688499,0.54368675,46300.0,46296.0,0.0001879]
[1641240688500,1.36839459,46300.0,46296.0,0.0001879]
[1641240688897,0.82470784,46298.0,46296.0,0.0001879]
[1641240689796,0.82470784,46299.0,46297.0,0.054]
[1641240690297,0.82470784,46299.0,46298.0,1.75674792]
[1641240690600,0.82470784,46299.0,46298.0,0.77103095]
[1641240691198,0.82470784,46299.0,46298.0,1.90803095]
[1641240691398,1.36839459,46300.0,46298.0,2.53174562]
[1641240691598,1.36839459,46300.0,46299.0,0.93306791]
[1641240691798,0.54368675,46300.0,46299.0,0.93306791]
[1641240692042,0.54368675,46300.0,46299.0,0.706745]
[1641240692438,0.54368675,46300.0,46299.0,1.02636658]
[1641240692636,0.54368675,46300.0,46299.0,1.07636658]
[1641240693239,0.54368675,46300.0,46299.0,0.72361458]
[1641240693542,0.54368675,46300.0,46299.0,0.403993]
[1641240696703,0.54368675,46300.0,46299.0,0.72423404]
[1641240696905,0.54368675,46300.0,46299.0,0.7244194]
[1641240697105,0.54368675,46300.0,46299.0,0.40417836]
[1641240698007,0.54368675,46300.0,46299.0,0.25417836]
[1641240698210,0.94368675,46300.0,46299.0,0.00018536]
[1641240698806,0.54368675,46300.0,46299.0,0.00018536]
[1641240700153,1.36839459,46300.0,46299.0,0.00018536]
[1641240705809,0.54368675,46300.0,46299.0,0.00018536]
[1641240706909,0.54368675,46300.0,46299.0,0.70060665]
[1641240707151,0.54368675,46300.0,46299.0,0.47739527]
[1641240707552,0.54368675,46300.0,46299.0,0.32739527]
[1641240707950,1.1339486,46300.0,46299.0,0.32739527]
[1641240709254,0.54368675,46300.0,46299.0,0.65669803]
[1641240709851,1.13386702,46300.0,46299.0,0.65669803]
[1641240710452,1.13386702,46300.0,46299.0,0.80669803]
[1641240710653,1.13386702,46300.0,46299.0,0.65669803]
[1641240710899,1.12886702,46300.0,46299.0,0.65669803]
[1641240712806,1.12886702,46300.0,46299.0,0.20018536]
[1641240713205,1.12886702,46300.0,46299.0,0.00018536]